bitfinex/quotes_SOLUSD_20220307
["timestamp","ask_amount","ask_price","bid_price","bid_amount"]
[1646684412910,18.5115,81.1,80.992,0.43144622]
[1646684412911,6.17,81.072,80.994,0.43144622]
[1646684413209,1.60905295,81.087,80.994,0.43144622]
[1646684413210,6.17,81.086,80.997,124.23144622]
[1646684413437,18.5115,81.1,81.002,0.43144622]
[1646684413438,6.168,81.088,81.002,0.43144622]
[1646684413642,1.60905295,81.09,81.002,0.43144622]
[1646684413643,6.168,81.089,81.004,0.43144622]
[1646684413836,6.168,81.089,81.006,0.43144622]
[1646684414039,6.168,81.09,81.011,123.8]
[1646684414236,6.168,81.095,81.014,0.43144622]
[1646684414443,6.168,81.099,81.016,0.43144622]
[1646684414637,6.168,81.099,81.017,123.8]
[1646684414837,18.5115,81.1,81.019,123.8]
[1646684415037,18.5115,81.1,81.022,45.21273324]
[1646684415241,0.25,81.099,81.023,0.25]
[1646684415445,6.168,81.098,81.03,18.5112]
[1646684415639,6.168,81.098,81.023,0.25]
[1646684415640,0.25,81.097,81.032,0.43144622]
[1646684415839,0.25,81.097,81.032,0.68144622]
[1646684416042,0.25,81.097,81.034,0.43144622]
[1646684416241,0.25,81.097,81.036,0.43144622]
[1646684416444,0.25,81.097,81.038,0.43144622]
[1646684416645,0.25,81.097,81.05,18.5063]
[1646684416840,0.25,81.105,81.051,43.64986769]
[1646684417241,0.25,81.105,80.955,62.17]
[1646684417441,0.25,81.105,81.02,14.43]
[1646684417641,18.5124,81.1,81.03,18.5146]
[1646684417839,0.25,81.099,81.03,18.5146]
[1646684418241,36.15398998,81.099,81.031,45.54925303]
[1646684418639,36.15398998,81.099,81.032,0.25]
[1646684419041,36.15398998,81.099,81.04,18.5117]
[1646684419242,36.15398998,81.099,81.041,0.25]
[1646684419842,6.167,81.098,81.041,0.25]
[1646684420042,0.25,81.097,81.041,0.25]
[1646684421244,0.25,81.097,81.04,18.5117]
[1646684421449,6.167,81.096,81.04,18.5117]
[1646684421642,0.25,81.095,81.031,45.54925303]
[1646684421842,0.25,81.097,81.031,45.54925303]
[1646684422744,6.167,81.096,81.032,0.25]
[1646684422947,5.11270079,81.114,81.04,18.5117]
[1646684423145,20.10975295,81.132,81.042,0.11800854]
[1646684423547,6.167,81.131,81.042,0.11800854]
[1646684423746,6.167,81.131,81.044,0.27437833]
[1646684423948,54.5664653,81.135,81.046,0.27437833]
[1646684424147,54.5664653,81.135,81.062,40.43731068]
[1646684424344,54.5664653,81.135,81.063,0.25]
[1646684424548,48.3994653,81.135,81.063,0.25]
[1646684425045,48.3994653,81.135,81.07,18.5017]
[1646684425246,48.3994653,81.135,81.071,0.25]
[1646684425852,34.1667753,81.122,81.071,0.25]
[1646684426045,2.83613526,81.138,81.071,0.25]
[1646684426246,18.5008,81.15,81.08,18.5013]
[1646684426451,18.5008,81.15,81.081,0.25]
[1646684426648,6.165,81.149,81.081,0.25]
[1646684427052,6.165,81.149,81.081,46.72581125]
[1646684427349,4.94117876,81.174,81.081,46.72581125]
[1646684427350,6.164,81.173,81.09,18.5002]
[1646684427550,6.164,81.173,81.1,14.43]
[1646684427848,6.162,81.187,81.102,0.26835331]
[1646684428148,34.13975658,81.186,81.102,37.41602666]
[1646684428352,6.16,81.185,81.121,42.84101643]
[1646684428548,6.16,81.185,81.122,0.25]
[1646684428848,6.16,81.185,81.101,0.25]
[1646684428849,7.16684407,81.184,81.09,33.0926]
[1646684429050,6.162,81.183,81.09,33.0926]
[1646684429248,36.39367495,81.183,81.09,33.0926]
[1646684429449,2.83613526,81.182,81.09,33.0926]
[1646684429647,6.162,81.181,81.09,33.0926]
[1646684429847,6.162,81.181,81.091,40.65769966]
[1646684429848,0.25,81.18,81.091,40.65769966]
[1646684430049,6.162,81.179,81.1,18.4956]
[1646684430247,0.25,81.178,81.091,40.65769966]
[1646684430452,6.162,81.177,81.092,0.25]
[1646684430651,0.25,81.176,81.092,0.25]
[1646684430847,4.51184045,81.174,81.091,40.65769966]
[1646684431055,46.70636658,81.169,81.091,40.65769966]
[1646684431255,6.412,81.168,81.091,40.65769966]
[1646684432254,6.412,81.168,81.092,0.25]
[1646684433050,8.42399053,81.167,81.092,0.25]
[1646684433252,18.5008,81.16,81.07,76.0877]
[1646684433450,4.39084059,81.158,81.06,14.43]
[1646684433651,0.15262655,81.156,81.06,14.43]
[1646684433849,6.163,81.155,81.061,18.182]
[1646684434052,0.25,81.154,81.061,18.182]
[1646684434255,6.31562655,81.153,81.084,41.59087276]
[1646684434452,0.25,81.152,81.084,41.59087276]
[1646684434652,6.163,81.151,81.084,41.59087276]
[1646684434852,4.82283497,81.149,81.03,86.0841]
[1646684435054,0.27017503,81.147,81.031,23.6687]
[1646684435254,6.166,81.146,81.031,23.6687]
[1646684435451,0.27017503,81.144,81.031,23.6687]
[1646684435652,0.27017503,81.142,81.031,23.6687]
[1646684435852,40.25110327,81.139,81.032,43.54937612]
[1646684436054,0.27017503,81.137,81.04,18.5105]
[1646684436253,0.27017503,81.135,81.041,0.25]
[1646684436454,6.166,81.134,81.04,2.83613526]
[1646684436653,0.25,81.133,81.041,0.25]
[1646684436856,0.25,81.138,81.042,2.83613526]
[1646684437055,0.25,81.138,81.043,0.25]
[1646684437257,0.25,81.138,81.052,43.71957557]
[1646684437455,0.25,81.138,81.053,23.1287]
[1646684438354,0.25,81.138,81.071,41.11151319]
[1646684439254,6.164,81.137,81.071,41.11151319]
[1646684439457,0.25,81.136,81.071,41.11151319]
[1646684439677,6.164,81.135,81.071,41.11151319]
[1646684439855,0.25,81.134,81.071,41.11151319]
[1646684440062,6.165,81.133,81.071,41.11151319]
[1646684440257,0.25,81.132,81.071,41.11151319]
[1646684440456,0.25,81.132,81.08,18.5018]
[1646684441058,40.25110327,81.139,81.08,18.5018]
[1646684441356,1.60905295,81.136,81.08,18.5018]
[1646684441556,1.60905295,81.135,81.081,6.164]
[1646684441757,1.60905295,81.134,81.072,6.164]
[1646684441960,1.60905295,81.131,81.071,41.11151319]
[1646684442159,1.60905295,81.128,81.071,41.11151319]
[1646684442359,0.25,81.127,81.071,41.11151319]
[1646684442761,0.25,81.128,81.055,6.165]
[1646684443059,1.60905295,81.124,81.056,0.25]
[1646684443261,1.85905295,81.123,81.06,18.5064]
[1646684443461,1.85905295,81.123,81.061,0.25]
[1646684443864,48.31796633,81.122,81.061,44.95004155]
[1646684444063,0.25,81.121,81.061,44.95004155]
[1646684444263,1.60905295,81.12,81.061,44.95004155]
[1646684444465,1.85905295,81.119,81.061,44.95004155]
[1646684444665,1.60905295,81.119,81.07,18.5046]
[1646684444865,0.25,81.118,81.071,6.165]
[1646684445063,1.60905295,81.129,81.072,0.25]
[1646684445265,1.60905295,81.132,81.073,6.165]
[1646684445465,1.60905295,81.134,81.062,6.165]
[1646684445665,1.60905295,81.134,81.063,24.883]
[1646684445864,1.60905295,81.132,81.064,6.165]
[1646684446069,39.35507001,81.133,81.065,0.25]
[1646684446270,39.35507001,81.133,81.081,44.41274669]
[1646684446667,0.25,81.132,81.064,6.165]
[1646684447068,1.60905295,81.13,81.064,6.165]
[1646684447286,18.5094,81.12,81.064,6.165]
[1646684447489,0.25,81.119,81.063,24.633]
[1646684447688,41.44033112,81.119,81.064,43.42676824]
[1646684447886,39.83127817,81.119,81.064,43.42676824]
[1646684448488,0.25,81.119,81.064,43.42676824]
[1646684448689,0.25,81.121,81.065,6.165]
[1646684448889,1.60905295,81.127,81.065,6.165]
[1646684449089,1.60905295,81.131,81.066,0.25]
[1646684449289,1.60905295,81.131,81.067,6.165]
[1646684449489,1.60905295,81.131,81.068,0.25]
[1646684449692,1.60905295,81.132,81.07,18.5047]
[1646684449889,1.60905295,81.131,81.071,6.415]
[1646684450090,1.60905295,81.13,81.071,6.415]
[1646684450492,1.60905295,81.128,81.071,0.25]
[1646684451093,1.85905295,81.127,81.065,6.25]
[1646684451293,1.60905295,81.126,81.065,6.25]
[1646684451493,0.25,81.125,81.065,6.25]
[1646684452698,1.85905295,81.125,81.065,6.25]
[1646684452897,1.60905295,81.123,81.064,43.42676824]
[1646684453098,0.25,81.122,81.064,43.42676824]
[1646684453298,1.60905295,81.114,81.064,43.42676824]
[1646684453498,46.38579029,81.113,81.064,43.42676824]
[1646684453699,0.25,81.112,81.064,43.42676824]
[1646684455401,1.60905295,81.11,81.052,6.165]
[1646684455600,124.05,81.112,81.052,6.165]
[1646684455601,1.60905295,81.107,81.052,6.165]
[1646684455802,1.60905295,81.094,81.052,6.165]
[1646684456003,0.29816937,81.092,81.03,24.3931]
[1646684456304,0.25,81.093,81.03,24.3931]
[1646684456305,0.29816937,81.09,81.03,24.3931]
[1646684456501,0.29816937,81.09,81.031,34.63304165]
[1646684456702,49.36596055,81.093,81.031,34.63304165]
[1646684456901,6.168,81.092,81.031,34.63304165]
[1646684457102,0.25,81.091,81.031,34.63304165]
[1646684457603,6.168,81.092,81.04,18.5128]
[1646684457804,1.60905295,81.1,81.042,0.12046979]
[1646684458003,1.60905295,81.12,81.042,46.3156]
[1646684458203,1.60905295,81.119,81.043,3.08613526]
[1646684458403,1.60905295,81.121,81.043,3.08613526]
[1646684458603,6.166,81.12,81.044,45.30097909]
[1646684458804,0.25,81.119,81.05,18.5012]
[1646684459004,0.25,81.122,81.051,0.25]
[1646684459203,7.77505295,81.121,81.051,0.25]
[1646684459403,1.60905295,81.118,81.051,0.25]
[1646684459603,1.60905295,81.116,81.051,0.25]
[1646684459907,0.25,81.115,81.051,0.25]
[1646684460103,0.25,81.115,81.043,2.83613526]
[1646684460104,0.25,81.115,81.061,41.2498948]
[1646684460706,6.416,81.115,81.061,41.2498948]
[1646684460905,1.60905295,81.109,81.061,41.2498948]
[1646684461109,46.82226131,81.108,81.061,41.2498948]
[1646684461314,1.60905295,81.103,81.042,46.3156]
[1646684461513,6.417,81.102,81.042,46.3156]
[1646684461709,1.60905295,81.096,81.042,46.3156]
[1646684461907,6.417,81.095,81.042,46.3156]
[1646684462306,46.42654453,81.094,81.042,46.3156]
[1646684462510,1.85905295,81.093,81.042,46.3156]
[1646684462709,0.25,81.093,81.042,46.3156]
[1646684463109,1.60905295,81.094,81.042,46.3156]
[1646684463407,1.60905295,81.102,81.05,18.5099]
[1646684463609,1.60905295,81.102,81.051,0.25]
[1646684463809,1.60905295,81.102,81.05,2.83613526]
[1646684464008,1.60905295,81.113,81.051,0.25]
[1646684464208,1.60905295,81.119,81.052,123.8]
[1646684464410,1.60905295,81.121,81.061,123.8]
[1646684464608,1.60905295,81.122,81.062,0.25]
[1646684464812,1.60905295,81.123,81.062,0.25]
[1646684465015,1.60905295,81.128,81.063,2.83613526]
[1646684465212,1.60905295,81.134,81.064,0.25]
[1646684465413,1.60905295,81.137,81.064,24.1225]
[1646684465612,1.60905295,81.138,81.065,2.83613526]
[1646684465814,6.165,81.153,81.065,2.83613526]
[1646684465815,1.60905295,81.137,81.072,40.86823317]
[1646684466020,1.60905295,81.138,81.074,123.8]
[1646684466219,1.60905295,81.141,81.075,0.25]
[1646684466419,1.60905295,81.145,81.075,3.08613526]
[1646684466622,1.60905295,81.145,81.081,123.8]
[1646684466823,1.60905295,81.149,81.092,0.28777488]
[1646684467023,1.60905295,81.158,81.093,123.8]
[1646684467221,1.60905295,81.16,81.096,0.28777488]
[1646684467527,1.60905295,81.163,81.101,123.8]
[1646684467727,1.60905295,81.168,81.11,18.4859]
[1646684467923,1.60905295,81.168,81.102,6.53777488]
[1646684467924,1.60905295,81.17,81.121,123.8]
[1646684468123,3.20822917,81.207,81.131,123.8]
[1646684468325,3.20822917,81.215,81.133,123.8]
[1646684468528,6.04436443,81.222,81.135,123.8]
[1646684468724,12.8567503,81.221,81.141,123.8]
[1646684468925,6.1977503,81.22,81.16,18.4821]
[1646684469221,0.25,81.22,81.161,123.8]
[1646684469422,6.159,81.224,81.161,123.8]
[1646684469622,6.158,81.229,81.161,123.8]
[1646684469923,6.158,81.229,81.162,37.47884895]
[1646684470129,6.158,81.229,81.17,18.4796]
[1646684470522,6.157,81.235,81.17,18.4796]
[1646684470922,4.2102938,81.234,81.17,18.4796]
[1646684471121,6.157,81.233,81.162,37.47884895]
[1646684472222,6.157,81.236,81.162,37.47884895]
[1646684472426,18.4824,81.23,81.17,18.4829]
[1646684472626,0.25,81.23,81.17,18.4829]
[1646684473026,5.907,81.236,81.17,18.4829]
[1646684474038,39.96967441,81.237,81.17,18.4829]
[1646684474638,128.90347844,81.236,81.17,18.4829]
[1646684474840,123.8,81.234,81.17,18.4829]
[1646684475038,123.8,81.234,81.151,24.7411]
[1646684475039,123.8,81.229,81.151,24.7411]
[1646684475242,0.18657042,81.228,81.151,24.7411]
[1646684475437,4.00546245,81.225,81.151,24.7411]
[1646684475637,123.8,81.223,81.151,24.7411]
[1646684475838,6.34457042,81.222,81.151,24.7411]
[1646684476041,0.18657042,81.22,81.151,24.7411]
[1646684476241,4.06515232,81.208,81.144,47.38021446]
[1646684476444,0.19025198,81.207,81.144,47.38021446]
[1646684476844,198.25605063,81.204,81.121,24.547]
[1646684477042,74.24,81.202,81.121,24.547]
[1646684477240,18.4915,81.19,81.121,24.547]
[1646684477441,0.32351389,81.188,81.121,24.547]
[1646684477644,0.32351389,81.186,81.121,24.547]
[1646684477846,6.16,81.185,81.122,35.6768664]
[1646684478042,44.61983305,81.186,81.122,35.6768664]
[1646684478252,0.32351389,81.186,81.122,35.6768664]
[1646684478446,0.32351389,81.186,81.13,18.4922]
[1646684478642,128.04800216,81.218,81.13,18.7422]
[1646684478841,123.8,81.216,81.13,18.7422]
[1646684479042,123.8,81.214,81.13,18.7422]
[1646684479244,36.81293278,81.212,81.131,47.2985]
[1646684479444,6.159,81.211,81.131,47.2985]
[1646684479843,36.81293278,81.212,81.131,47.2985]
[1646684480045,18.4866,81.21,81.141,40.43440664]
[1646684480243,18.7366,81.21,81.141,40.43440664]
[1646684480450,18.7366,81.21,81.14,18.7397]
[1646684480646,11.60770309,81.209,81.14,0.25]
[1646684481244,6.159,81.209,81.131,47.2985]
[1646684481446,5.659,81.209,81.132,34.98047035]
[1646684482248,4.44646162,81.199,81.131,47.2985]
[1646684482547,0.17334644,81.196,81.131,47.2985]
[1646684482746,123.8,81.194,81.131,47.2985]
[1646684482948,0.17334644,81.193,81.131,47.2985]
[1646684483145,18.4945,81.18,81.131,47.2985]
[1646684483347,46.44315943,81.179,81.131,47.2985]
[1646684483746,6.16,81.178,81.106,0.75]
[1646684484648,6.16,81.178,81.107,40.32836489]
[1646684485147,6.16,81.178,81.12,18.4941]
[1646684485348,46.44315943,81.179,81.121,36.11910988]
[1646684485748,46.44315943,81.179,81.121,159.91910988]
[1646684486450,46.44315943,81.179,81.13,18.4891]
[1646684486849,6.16,81.206,81.13,18.4891]
[1646684487250,6.16,81.209,81.13,18.4891]
[1646684487755,6.16,81.209,81.131,123.8]
[1646684487950,18.4888,81.2,81.14,18.4891]
[1646684488152,18.7388,81.2,81.141,38.12558621]
[1646684488549,18.7388,81.2,81.122,24.4612]
[1646684488749,6.16,81.199,81.122,24.4612]
[1646684488951,6.16,81.199,81.13,18.492]
[1646684489150,38.83529299,81.208,81.13,18.742]
[1646684489354,6.159,81.221,81.131,24.3285]
[1646684489552,4.35777677,81.234,81.133,123.8]
[1646684489750,4.35777677,81.234,81.132,24.9025]
[1646684489751,3.20822917,81.245,81.141,123.8]
[1646684489951,4.77809859,81.234,81.15,32.9082]
[1646684490152,4.60867934,81.234,81.15,33.1582]
[1646684490359,4.60867934,81.234,81.151,169.55298684]
[1646684490550,6.158,81.242,81.151,169.55298684]
[1646684490551,6.158,81.242,81.151,172.3891221]
[1646684490753,6.158,81.242,81.152,25.77043526]
[1646684490954,6.158,81.242,81.17,18.4778]
[1646684491157,6.158,81.242,81.17,18.7278]
[1646684491356,6.157,81.246,81.171,47.1254469]
[1646684491761,6.157,81.254,81.171,170.9254469]
[1646684491952,18.6265,81.251,81.18,18.4732]
[1646684492154,6.157,81.25,81.18,18.4732]
[1646684492554,36.63752738,81.238,81.18,18.4732]
[1646684492755,47.26967797,81.225,81.18,18.4732]
[1646684492955,6.157,81.25,81.18,18.4732]
[1646684493156,18.4807,81.24,81.18,18.4732]
[1646684493358,6.157,81.239,81.18,18.4732]
[1646684493557,6.157,81.25,81.18,24.3932]
[1646684493958,43.81285169,81.227,81.18,24.3932]
[1646684494359,6.157,81.25,81.18,24.3932]
[1646684494568,6.157,81.25,81.18,24.6432]
[1646684494759,18.6265,81.251,81.18,24.6432]
[1646684495359,45.27030959,81.237,81.18,24.6432]
[1646684496160,45.27030959,81.237,81.18,24.3932]
[1646684496761,45.27030959,81.237,81.18,5.92]
[1646684497261,45.84528986,81.222,81.18,5.92]
[1646684497860,6.157,81.243,81.18,24.3998]
[1646684498060,3.20822917,81.248,81.18,24.3998]
[1646684498260,3.20822917,81.25,81.18,24.3998]
[1646684498466,3.20822917,81.249,81.18,24.3998]
[1646684498662,6.157,81.248,81.18,24.3998]
[1646684498862,44.93144545,81.225,81.18,24.3998]
[1646684499561,6.157,81.248,81.18,24.3998]
[1646684499861,6.157,81.249,81.18,24.3998]
[1646684500065,6.157,81.251,81.18,24.3998]
[1646684500464,1.15196321,81.255,81.181,123.8]
[1646684500666,38.66108143,81.249,81.19,18.4751]
[1646684500865,38.66108143,81.249,81.191,40.61795904]
[1646684501966,38.66108143,81.249,81.2,18.4757]
[1646684502168,41.7894644,81.233,81.18,20.35]
[1646684502366,41.7894644,81.233,81.18,5.92]
[1646684503168,41.7894644,81.233,81.181,43.10966269]
[1646684503367,0.25,81.23,81.181,43.10966269]
[1646684503569,41.7894644,81.233,81.181,43.10966269]
[1646684503766,6.157,81.253,81.181,43.10966269]
[1646684504167,1.15196321,81.255,81.181,43.10966269]
[1646684504368,1.15196321,81.255,81.19,18.4783]
[1646684504967,41.74078784,81.254,81.19,18.4783]
[1646684505667,6.155,81.253,81.182,23.3934]
[1646684506271,18.4771,81.25,81.182,23.3934]
[1646684506468,6.156,81.249,81.182,23.3934]
[1646684507067,6.156,81.249,81.19,18.478]
[1646684507871,18.4788,81.24,81.123,100.0]
[1646684508069,123.8,81.238,81.151,24.2804]
[1646684508268,74.24,81.235,81.151,24.2804]
[1646684508472,204.51497976,81.234,81.151,24.2804]
[1646684508671,228.51652655,81.234,81.151,24.2804]
[1646684508874,18.4873,81.22,81.152,38.8951251]
[1646684509069,44.50565579,81.219,81.152,38.8951251]
[1646684509273,47.34179105,81.219,81.16,18.4855]
[1646684509470,41.18379105,81.219,81.152,38.8951251]
[1646684509669,8.99413526,81.218,81.152,38.8951251]
[1646684509871,18.4859,81.21,81.152,38.8951251]
[1646684510072,18.7359,81.21,81.152,38.8951251]
[1646684510371,21.57203526,81.21,81.151,24.2804]
[1646684511571,6.159,81.209,81.151,24.2804]
[1646684511772,18.4885,81.2,81.151,24.2804]
[1646684511972,36.11323038,81.199,81.151,24.2804]
[1646684512471,36.11323038,81.199,81.143,48.29601831]
[1646684512672,36.11323038,81.199,81.14,18.7395]
[1646684512871,36.11323038,81.199,81.14,0.25]
[1646684513072,42.27223038,81.199,81.14,0.25]
[1646684513878,42.27223038,81.199,81.132,46.93821207]
[1646684514074,42.27223038,81.199,81.14,18.4895]
[1646684514274,42.27223038,81.199,81.14,18.7395]
[1646684515074,42.27223038,81.199,81.14,0.25]
[1646684515274,18.4904,81.19,81.133,23.8081]
[1646684516274,6.16,81.189,81.133,23.8081]
[1646684516773,6.16,81.189,81.132,46.93821207]
[1646684516973,41.82337645,81.179,81.132,46.93821207]
[1646684520991,41.82337645,81.179,81.131,24.0729]
[1646684521183,0.12959938,81.178,81.111,29.9681]
[1646684521382,2.96573464,81.178,81.112,6.16]
[1646684521587,6.16,81.177,81.112,6.16]
[1646684521976,41.82337645,81.179,81.113,38.09877927]
[1646684522196,3.20822917,81.199,81.12,18.4943]
[1646684522380,6.16,81.198,81.121,55.4]
[1646684522577,61.6432,81.2,81.121,55.4]
[1646684522777,2.83613526,81.198,81.121,55.4]
[1646684523078,2.83613526,81.198,81.121,179.2]
[1646684523277,40.35439248,81.197,81.121,179.2]
[1646684524081,18.4907,81.19,81.13,18.4917]
[1646684524277,18.7407,81.19,81.131,51.11026908]
[1646684524879,40.35439248,81.197,81.131,174.91026908]
[1646684525079,40.35439248,81.197,81.132,2.83613526]
[1646684525279,40.35439248,81.197,81.14,18.4895]
[1646684525479,40.35439248,81.197,81.141,123.8]
[1646684525879,40.35439248,81.197,81.14,0.25]
[1646684526684,40.35439248,81.197,81.134,24.5745]
[1646684527485,18.4905,81.19,81.134,24.5745]
[1646684527785,123.8,81.189,81.121,24.8847]
[1646684527984,0.12964854,81.188,81.121,24.8847]
[1646684528183,2.83613526,81.188,81.121,24.8847]
[1646684528588,18.4974,81.17,81.121,24.8847]
[1646684528786,44.79668672,81.169,81.121,24.8847]
[1646684529190,0.25,81.168,81.121,24.8847]
[1646684530604,0.25,81.186,81.122,6.16]
[1646684530806,2.83613526,81.198,81.122,6.16]
[1646684530807,0.25,81.197,81.122,6.41]
[1646684531004,0.25,81.197,81.122,35.32365453]
[1646684531206,0.25,81.197,81.13,18.4921]
[1646684531405,0.25,81.197,81.131,52.42362192]
[1646684532005,0.25,81.207,81.131,176.22362192]
[1646684532206,0.25,81.207,81.151,43.0167967]
[1646684533008,38.30041428,81.209,81.151,43.0167967]
[1646684534207,0.25,81.208,81.151,43.0167967]
[1646684536018,18.4884,81.2,81.151,43.0167967]
[1646684536214,0.25,81.199,81.151,43.0167967]
[1646684536615,18.4884,81.2,81.151,43.0167967]
[1646684537014,0.25,81.199,81.151,43.0167967]
[1646684537214,18.4884,81.2,81.151,43.0167967]
[1646684537410,6.159,81.208,81.151,43.0167967]
[1646684538612,0.25,81.207,81.15,18.4872]
[1646684538812,6.159,81.206,81.151,0.25]
[1646684539011,0.25,81.205,81.151,0.25]
[1646684539211,18.4882,81.2,81.151,0.25]
[1646684539411,0.25,81.199,81.151,0.25]
[1646684540513,6.159,81.206,81.151,0.25]
[1646684540713,2.83613526,81.207,81.16,18.4847]
[1646684540911,2.83613526,81.207,81.161,0.25]
[1646684542714,0.25,81.206,81.161,0.25]
[1646684542913,0.25,81.206,81.151,0.25]
[1646684543318,18.4885,81.2,81.151,0.25]
[1646684543512,18.4885,81.2,81.142,0.25]
[1646684544214,0.25,81.199,81.142,36.40562862]
[1646684544418,6.159,81.198,81.142,36.40562862]
[1646684544619,0.25,81.197,81.142,36.40562862]
[1646684544814,47.95762491,81.195,81.142,36.40562862]
[1646684545015,0.25,81.194,81.142,36.40562862]
[1646684545218,0.25,81.194,81.15,18.4868]
[1646684545418,0.25,81.194,81.151,0.25]
[1646684545619,6.159,81.209,81.142,36.15562862]
[1646684545818,0.25,81.208,81.142,36.15562862]
[1646684546020,0.25,81.208,81.143,123.8]
[1646684546219,3.20822917,81.22,81.16,18.4846]
[1646684546419,3.20822917,81.225,81.161,123.8]
[1646684546619,37.13226839,81.224,81.162,24.8741]
[1646684546919,3.20822917,81.228,81.163,123.8]
[1646684547121,3.20822917,81.234,81.171,123.8]
[1646684547319,3.20822917,81.234,81.174,0.16292505]
[1646684547518,6.157,81.254,81.176,0.16292505]
[1646684547719,6.157,81.254,81.181,123.8]
[1646684547920,46.25137282,81.255,81.183,123.8]
[1646684548122,46.25137282,81.255,81.191,123.8]
[1646684548320,46.25137282,81.255,81.192,39.36081709]
[1646684548819,1.15196321,81.255,81.192,39.36081709]
[1646684550222,1.15196321,81.255,81.211,38.02420923]
[1646684550623,0.25,81.254,81.211,38.02420923]
[1646684552431,2.83613526,81.253,81.211,38.02420923]
[1646684552621,0.25,81.252,81.2,18.475]
[1646684553021,2.83613526,81.251,81.17,94.378]
[1646684553222,0.25,81.25,81.17,94.378]
[1646684553422,0.25,81.25,81.171,123.8]
[1646684553622,2.83613526,81.249,81.185,34.5111883]
[1646684553827,37.66491286,81.248,81.186,0.25]
[1646684554222,2.83613526,81.247,81.19,18.4772]
[1646684554421,0.25,81.246,81.191,0.25]
[1646684555323,0.25,81.246,81.2,18.4751]
[1646684555524,0.25,81.246,81.201,44.89949587]
[1646684557925,0.25,81.246,81.21,18.4729]
[1646684558124,0.25,81.253,81.201,44.89949587]
[1646684558325,6.155,81.252,81.201,44.89949587]
[1646684558625,47.92580436,81.251,81.201,44.64949587]
[1646684558825,6.155,81.25,81.201,44.64949587]
[1646684559026,0.25,81.249,81.201,44.64949587]
[1646684559326,6.155,81.248,81.201,44.64949587]
[1646684559527,0.25,81.247,81.18,61.582]
[1646684559727,6.156,81.246,81.17,32.7917]
[1646684559929,0.25,81.245,81.17,32.7917]
[1646684560126,6.156,81.244,81.17,32.7917]
[1646684560328,0.25,81.243,81.17,32.7917]
[1646684560527,6.156,81.242,81.191,47.78539502]
[1646684560729,47.67580436,81.251,81.192,0.25]
[1646684562230,0.25,81.25,81.2,18.4728]
[1646684562432,0.25,81.25,81.201,0.25]
[1646684562631,6.155,81.259,81.201,0.25]
[1646684562830,0.25,81.254,81.201,0.25]
[1646684563029,6.155,81.271,81.201,0.25]
[1646684563429,18.472,81.27,81.21,18.4733]
[1646684563630,49.45089428,81.255,81.211,43.57175706]
[1646684564033,1.15196321,81.255,81.211,43.57175706]
[1646684564231,0.25,81.254,81.211,43.57175706]
[1646684565231,0.25,81.254,81.22,18.4715]
[1646684565731,0.25,81.254,81.211,43.57175706]
[1646684567234,1.15196321,81.255,81.211,43.57175706]
[1646684568134,1.15196321,81.255,81.22,18.4709]
[1646684568335,1.15196321,81.255,81.221,0.25]
[1646684569335,1.15196321,81.255,81.23,18.4692]
[1646684570337,1.15196321,81.255,81.24,18.4666]
[1646684571541,3.20822917,81.292,81.24,18.4666]
[1646684571738,27.54991894,81.318,81.24,18.4666]
[1646684571739,6.152,81.291,81.241,0.25]
[1646684571937,6.152,81.298,81.241,0.25]
[1646684572137,6.69189287,81.297,81.25,18.4646]
[1646684572341,6.152,81.296,81.251,46.48036865]